bitfinex-derivatives/quotes_BNBF0:USTF0_20250220
["timestamp","ask_amount","ask_price","bid_price","bid_amount"]
[1740086959904,2.20146546,654.06,653.61,0.30599287]
[1740086960204,2.95884752,654.05,653.61,0.30599287]
[1740086960505,2.20146546,654.05,653.61,0.30599287]
[1740086960904,2.95825728,654.04,653.61,0.30599287]
[1740086961204,2.20146546,654.05,653.61,0.30599287]
[1740086961403,2.95825095,654.04,653.61,0.30599287]
[1740086961605,1.45,654.26,653.61,0.30599287]
[1740086961802,2.95844874,654.25,653.61,0.30599287]
[1740086962003,2.95844874,654.24,653.61,0.30599287]
[1740086962198,2.95844874,654.23,653.61,0.30599287]
[1740086962401,2.95844874,654.22,653.61,0.30599287]
[1740086962602,2.95844874,654.21,653.61,0.30599287]
[1740086962803,2.95844874,654.2,653.61,0.30599287]
[1740086962999,2.95844874,654.19,653.61,0.30599287]
[1740086963204,2.95844874,654.18,653.61,0.30599287]
[1740086963405,2.19905992,654.19,653.61,0.30599287]
[1740086963406,2.95844874,654.17,653.61,0.30599287]
[1740086963601,2.95844874,654.16,653.61,0.30599287]
[1740086963802,2.95844874,654.15,653.61,0.30599287]
[1740086964108,2.19905992,654.19,653.61,0.30599287]
[1740086964109,2.95844874,654.14,653.61,0.30599287]
[1740086964304,2.95844874,654.13,653.61,0.30599287]
[1740086964505,2.95844874,654.12,653.61,0.30599287]
[1740086964705,2.95844874,654.11,653.61,0.30599287]
[1740086964906,2.95844874,654.1,653.61,0.30599287]
[1740086965106,2.95844874,654.09,653.61,0.30599287]
[1740086965407,2.95799304,654.08,653.61,0.30599287]
[1740086965607,2.19905992,654.11,653.61,0.30599287]
[1740086965807,2.95799867,654.1,653.61,0.30599287]
[1740086966008,2.95799867,654.09,653.61,0.30599287]
[1740086966308,2.95798369,654.08,653.61,0.30599287]
[1740086966523,2.19905992,654.11,653.61,0.30599287]
[1740086966701,2.95754036,654.1,653.61,0.30599287]
[1740086966909,2.95754036,654.09,653.61,0.30599287]
[1740086967108,2.95754036,654.08,653.61,0.30599287]
[1740086967310,2.19826738,654.08,653.61,0.30599287]
[1740086968709,0.623,654.31,653.61,0.30599287]
[1740086968905,2.95799138,654.3,653.61,0.30599287]
[1740086969111,2.95799138,654.29,653.61,0.30599287]
[1740086969309,2.95799138,654.28,653.61,0.30599287]
[1740086969511,2.95799138,654.27,653.61,0.30599287]
[1740086969707,2.95799138,654.26,653.61,0.30599287]
[1740086969908,2.95799138,654.25,653.61,0.30599287]
[1740086970110,2.95799138,654.24,653.61,0.30599287]
[1740086970313,2.95799138,654.23,653.61,0.30599287]
[1740086970616,5.15665807,654.22,653.61,0.30599287]
[1740086970914,2.95799138,654.21,653.61,0.30599287]
[1740086971114,2.95799138,654.2,653.61,0.30599287]
[1740086971315,2.95799138,654.19,653.61,0.30599287]
[1740086971512,2.19866669,654.22,653.61,0.30599287]
[1740086971513,2.95799138,654.18,653.61,0.30599287]
[1740086971714,2.95799138,654.17,653.61,0.30599287]
[1740086971911,2.95799138,654.16,653.61,0.30599287]
[1740086972115,2.95799138,654.15,653.61,0.30599287]
[1740086972313,2.19866669,654.22,653.61,0.30599287]
[1740086972314,2.95799138,654.14,653.61,0.30599287]
[1740086972515,2.95799138,654.13,653.61,0.30599287]
[1740086972716,2.95799138,654.12,653.61,0.30599287]
[1740086972911,2.95799138,654.11,653.61,0.30599287]
[1740086973109,2.95799138,654.1,653.61,0.30599287]
[1740086973314,2.95799138,654.09,653.61,0.30599287]
[1740086973510,2.95799138,654.08,653.61,0.30599287]
[1740086973710,2.19866669,654.11,653.61,0.30599287]
[1740086973910,2.95685311,654.1,653.61,0.30599287]
[1740086974111,2.95685311,654.09,653.61,0.30599287]
[1740086974313,2.95685311,654.08,653.61,0.30599287]
[1740086974514,2.19866669,654.11,653.61,0.30599287]
[1740086974713,2.95675282,654.1,653.61,0.30599287]
[1740086974916,2.95675282,654.09,653.61,0.30599287]
[1740086975110,2.95675282,654.08,653.61,0.30599287]
[1740086975316,2.95675282,654.07,653.61,0.30599287]
[1740086975610,2.19866669,654.1,653.61,0.30599287]
[1740086975817,2.95676992,654.09,653.61,0.30599287]
[1740086976012,2.95676992,654.08,653.61,0.30599287]
[1740086976311,2.95676992,654.07,653.61,0.30599287]
[1740086976515,2.19866669,654.1,653.61,0.30599287]
[1740086976713,2.95679331,654.09,653.61,0.30599287]
[1740086976917,2.95679331,654.08,653.61,0.30599287]
[1740086977117,5.15546,654.07,653.61,0.30599287]
[1740086977416,2.95679331,654.06,653.61,0.30599287]
[1740086977616,2.19866669,654.07,653.61,0.30599287]
[1740086979016,2.95675584,654.06,653.61,0.30599287]
[1740086979218,1.839,654.3,653.61,0.30599287]
[1740086979418,2.95681382,654.29,653.61,0.30599287]
[1740086979615,2.95681382,654.28,653.61,0.30599287]
[1740086979815,2.95681382,654.27,653.61,0.30599287]
[1740086980015,2.95681382,654.26,653.61,0.30599287]
[1740086980216,2.95681382,654.25,653.61,0.30599287]
[1740086980415,2.95681382,654.24,653.61,0.30599287]
[1740086980719,2.95681382,654.23,653.66,1.13862989]
[1740086980915,2.95681382,654.22,653.67,0.30596478]
[1740086981111,2.95681382,654.21,653.67,0.30596478]
[1740086981318,2.95681382,654.2,653.67,0.30596478]
[1740086981516,2.95681382,654.19,653.67,0.30596478]
[1740086981720,2.95681382,654.18,653.67,0.30596478]
[1740086982019,2.95681382,654.17,653.67,0.30596478]
[1740086982216,2.95681382,654.16,653.67,0.30596478]
[1740086982418,2.95681382,654.15,653.66,1.13862989]
[1740086982718,2.95681382,654.14,653.66,1.13862989]
[1740086982918,2.95681382,654.13,653.66,1.13862989]
[1740086983120,2.95681382,654.12,653.66,1.13862989]
[1740086983317,2.95681382,654.11,653.66,1.13862989]
[1740086983517,2.95681382,654.1,653.66,1.13862989]
[1740086983721,2.95681382,654.09,653.66,1.13862989]
[1740086983921,2.95681382,654.08,653.66,1.13862989]
[1740086984119,2.19778923,654.15,653.66,1.13862989]
[1740086984323,5.15523689,654.14,653.72,1.13862989]
[1740086984515,2.95744766,654.13,653.72,1.13862989]
[1740086984716,2.95744766,654.12,653.72,1.13862989]
[1740086984920,2.95744766,654.11,653.72,1.13862989]
[1740086985120,2.95744766,654.1,653.72,1.13862989]
[1740086985317,2.19778923,654.14,653.72,1.13862989]
[1740086985522,2.95792241,654.13,653.72,1.13862989]
[1740086985722,2.95792241,654.12,653.72,1.13862989]
[1740086986022,2.95792241,654.11,653.72,1.13862989]
[1740086986223,2.19778923,654.12,653.72,1.13862989]
[1740086986416,2.95801084,654.11,653.72,1.13862989]
[1740086986619,2.19778923,654.12,653.72,1.13862989]
[1740086987325,2.19778923,654.12,653.67,1.13862989]
[1740086987723,1.448,654.28,653.67,1.13862989]
[1740086988018,2.95819728,654.27,653.67,1.13862989]
[1740086988223,2.95819728,654.26,653.67,1.13862989]
[1740086988425,2.95819728,654.25,653.67,1.13862989]
[1740086988625,2.95819728,654.24,653.67,1.13862989]
[1740086988826,2.95819728,654.23,653.67,1.13862989]
[1740086989026,2.95819728,654.22,653.67,1.13862989]
[1740086989325,2.95819728,654.21,653.67,1.13862989]
[1740086989522,2.95819728,654.2,653.67,1.13862989]
[1740086989720,2.95819728,654.19,653.67,1.13862989]
[1740086989921,2.95819728,654.18,653.67,1.13862989]
[1740086990221,2.95819728,654.17,653.67,1.13862989]
[1740086990526,2.95819728,654.16,653.67,1.13862989]
[1740086990727,2.95819728,654.15,653.67,1.13862989]
[1740086990930,2.95819728,654.14,653.67,1.13862989]
[1740086991129,2.95819728,654.13,653.67,1.13862989]
[1740086991326,2.19879465,654.17,653.67,1.13862989]
[1740086991527,2.9586139,654.16,653.67,1.13862989]
[1740086991729,2.9586139,654.15,653.76,1.13862989]
[1740086991929,2.9586139,654.14,653.76,1.13862989]
[1740086992125,2.9586139,654.13,653.76,1.13862989]
[1740086992429,2.19879465,654.15,653.76,1.13862989]
[1740086992624,2.95906935,654.14,653.76,1.13862989]
[1740086992829,2.19879465,654.15,653.76,1.13862989]
[1740086993424,1.448,654.28,653.76,1.13862989]
[1740086993727,2.95946163,654.27,653.76,1.13862989]
[1740086993927,2.95946163,654.26,653.76,1.13862989]
[1740086994130,2.95946163,654.25,653.76,1.13862989]
[1740086994332,2.95946163,654.24,653.83,1.13862989]
[1740086994530,2.95946163,654.23,653.83,1.13862989]
[1740086994827,2.95946163,654.22,653.83,1.13862989]
[1740086995029,2.95946163,654.21,653.83,1.13862989]
[1740086995232,2.95946163,654.2,653.83,1.13862989]
[1740086995431,2.95946163,654.19,653.83,1.13862989]
[1740086995632,2.95946163,654.18,653.83,1.13862989]
[1740086995829,2.95946163,654.17,653.83,1.13862989]
[1740086996029,2.95946163,654.16,653.83,1.13862989]
[1740086996331,2.19967475,654.19,653.83,1.13862989]
[1740086996531,2.96078759,654.18,653.83,1.13862989]
[1740086996729,2.96078759,654.17,653.9,1.13862989]
[1740086996932,2.96078759,654.16,653.9,1.13862989]
[1740086997127,2.96078759,654.15,653.9,1.13862989]
[1740086997330,2.19967475,654.16,653.9,1.13862989]
[1740086997632,2.96103876,654.15,653.9,1.13862989]
[1740086997835,2.19967475,654.16,653.9,1.13862989]
[1740086999236,1.448,654.28,653.9,1.13862989]
[1740086999432,2.96182856,654.27,653.9,1.13862989]
[1740086999735,2.96182856,654.26,653.9,1.13862989]
[1740086999929,2.96182856,654.25,653.9,1.13862989]
[1740087000134,2.96182856,654.24,653.9,1.13862989]
[1740087000431,2.96182856,654.23,653.9,1.13862989]
[1740087000731,2.96182856,654.22,653.9,1.13862989]
[1740087000935,2.20145844,654.26,653.9,1.13862989]
[1740087001137,2.96152531,654.25,653.9,1.13862989]
[1740087001336,2.20145844,654.26,653.9,1.13862989]
[1740087001337,2.96152531,654.24,653.9,1.13862989]
[1740087001537,2.96152531,654.23,653.9,1.13862989]
[1740087001836,2.96152531,654.22,653.9,1.13862989]
[1740087002038,2.20145844,654.23,653.9,1.13862989]
[1740087003038,2.20145844,654.23,653.79,1.13862989]
[1740087003739,3.597,654.41,653.79,1.13862989]
[1740087003939,2.96206292,654.4,653.79,1.13862989]
[1740087004136,5.16357229,654.39,653.79,1.13862989]
[1740087004335,2.96206292,654.38,653.79,1.13862989]
[1740087004538,2.96206292,654.37,653.79,1.13862989]
[1740087004739,2.96206292,654.36,653.79,1.13862989]
[1740087004935,2.96206292,654.35,653.79,1.13862989]
[1740087005132,2.96206292,654.34,653.79,1.13862989]
[1740087005339,2.96206292,654.33,653.79,1.13862989]
[1740087005639,5.16357229,654.32,653.79,1.13862989]
[1740087005848,2.96206292,654.31,653.79,1.13862989]
[1740087006038,2.96206292,654.3,653.79,1.13862989]
[1740087006235,2.96206292,654.29,653.79,1.13862989]
[1740087006439,2.96206292,654.28,653.8,1.13862989]
[1740087006640,2.96206292,654.27,653.8,1.13862989]
[1740087006841,2.96206292,654.26,653.8,1.13862989]
[1740087007033,2.20150937,654.32,653.8,1.13862989]
[1740087007233,2.96327693,654.31,653.8,1.13862989]
[1740087007437,2.96327693,654.3,653.8,1.13862989]
[1740087007637,2.96327693,654.29,653.8,1.13862989]
[1740087007840,2.96327693,654.28,653.8,1.13862989]
[1740087008040,2.20150937,654.3,653.8,1.13862989]
[1740087008236,2.96314483,654.29,653.8,1.13862989]
[1740087008442,2.96314483,654.28,653.8,1.13862989]
[1740087008843,2.20150937,654.3,653.8,1.13862989]
[1740087009042,2.96315733,654.29,653.8,1.13862989]
[1740087009343,2.20150937,654.27,653.81,0.30589926]
[1740087010837,2.9632004,654.26,653.81,0.30589926]
[1740087011040,2.9632004,654.25,653.81,0.30589926]
[1740087011338,2.20150937,654.25,653.81,0.30589926]
[1740087012645,2.119,654.48,653.81,0.30589926]
[1740087012943,2.96365408,654.45,653.81,0.30589926]
[1740087013138,2.96365408,654.44,653.81,0.30589926]
[1740087013344,2.96365408,654.43,653.81,0.30589926]
[1740087013541,2.96365408,654.42,653.81,0.30589926]
[1740087013744,2.96365408,654.41,653.81,0.30589926]
[1740087013943,2.96365408,654.4,653.81,0.30589926]
[1740087014141,2.96365408,654.39,653.81,0.30589926]
[1740087014339,2.96365408,654.38,653.81,0.30589926]
[1740087014547,2.96365408,654.37,653.81,0.30589926]
[1740087014740,2.96365408,654.36,653.81,0.30589926]
[1740087014946,2.96365408,654.35,653.81,0.30589926]
[1740087015247,2.96365408,654.34,653.81,0.30589926]
[1740087015446,2.96365408,654.33,653.81,0.30589926]
[1740087015647,2.96365408,654.32,653.81,0.30589926]
[1740087015946,2.96365408,654.31,653.81,0.30589926]
[1740087016146,2.96365408,654.3,653.81,0.30589926]
[1740087016344,2.96365408,654.29,653.81,0.30589926]
[1740087016539,2.20278132,654.29,653.81,0.30589926]
[1740087018548,2.119,654.48,653.81,0.30589926]
[1740087018749,2.96155672,654.47,653.81,0.30589926]
[1740087018948,2.96155672,654.46,653.81,0.30589926]
[1740087019150,2.96155672,654.45,653.81,0.30589926]
[1740087019349,2.96155672,654.44,653.81,0.30589926]
[1740087019649,2.96155672,654.43,653.81,0.30589926]
[1740087019949,2.96155672,654.42,653.93,1.13862989]
[1740087020144,2.96155672,654.41,653.93,1.13862989]
[1740087020345,2.96155672,654.4,653.93,1.13862989]
[1740087020546,2.2011216,654.46,653.93,1.13862989]
[1740087020547,2.96155672,654.39,653.93,1.13862989]
[1740087020747,2.96155672,654.38,653.93,1.13862989]
[1740087020947,2.96155672,654.37,653.93,1.13862989]
[1740087021145,2.96155672,654.36,653.93,1.13862989]
[1740087021344,2.96155672,654.35,653.93,1.13862989]
[1740087021548,2.96155672,654.34,653.93,1.13862989]
[1740087021749,2.96155672,654.33,653.93,1.13862989]
[1740087021942,2.96155672,654.32,653.93,1.13862989]
[1740087022145,2.96155672,654.31,653.93,1.13862989]
[1740087022348,2.96155672,654.3,653.81,1.44452915]
[1740087022546,2.96155672,654.29,653.81,1.44452915]
[1740087022750,2.96155672,654.28,653.81,1.44452915]
[1740087023052,2.96155672,654.27,653.81,1.44452915]
[1740087023251,2.96155672,654.26,653.81,1.44452915]
[1740087023445,2.2011216,654.29,653.81,1.44452915]
[1740087023843,2.119,654.48,653.81,1.44452915]
[1740087024046,2.96123454,654.47,653.81,1.44452915]
[1740087024246,2.96123454,654.46,653.81,1.44452915]
[1740087024451,2.96123454,654.45,653.81,1.44452915]
[1740087024650,2.96123454,654.44,653.82,1.13862989]
[1740087024852,2.96123454,654.43,653.82,1.13862989]
[1740087025053,2.96123454,654.42,653.83,0.30588991]
[1740087025351,2.96123454,654.41,653.83,0.30588991]
[1740087025652,2.96123454,654.4,653.83,0.30588991]
[1740087025952,5.16204304,654.39,653.83,0.30588991]
[1740087026152,2.96123454,654.38,653.83,0.30588991]
[1740087026452,2.2008085,654.39,653.91,1.13862989]
[1740087026453,2.96123454,654.37,653.91,1.13862989]
[1740087026653,2.96123454,654.36,653.91,1.13862989]
[1740087026853,2.96123454,654.35,653.91,1.13862989]
[1740087027054,2.96123454,654.34,653.91,1.13862989]
[1740087027253,2.96123454,654.33,653.92,0.30584781]
[1740087027449,2.96123454,654.32,653.92,0.30584781]
[1740087027652,2.96123454,654.31,653.92,0.30584781]
[1740087027853,2.2008085,654.39,653.92,0.30584781]
[1740087028152,2.96128056,654.38,653.92,0.30584781]
[1740087028352,2.96128056,654.37,653.92,0.30584781]
[1740087028552,2.96128056,654.36,653.92,0.30584781]
[1740087028749,2.96128056,654.35,653.92,0.30584781]
[1740087028953,2.2008085,654.38,653.96,1.13862989]
[1740087028954,2.96128056,654.34,653.96,1.13862989]
[1740087029254,2.96128056,654.33,653.96,1.13862989]
[1740087029450,2.96128056,654.32,653.96,1.13862989]
[1740087029656,2.96128056,654.31,653.96,1.13862989]
[1740087029955,2.96128056,654.3,653.96,1.13862989]
[1740087030156,2.2008085,654.38,653.96,1.13862989]
[1740087030355,2.119,654.48,653.96,1.13862989]
[1740087030356,2.96131874,654.37,653.96,1.13862989]
[1740087030553,2.96131874,654.36,653.96,1.13862989]
[1740087030753,2.96131874,654.35,653.96,1.13862989]
[1740087030951,2.96131874,654.34,653.96,1.13862989]
[1740087031151,2.96131874,654.33,653.96,1.13862989]
[1740087031351,2.96131874,654.32,653.96,1.13862989]
[1740087031557,2.96131874,654.31,653.96,1.13862989]
[1740087031755,2.96131874,654.3,653.96,1.13862989]
[1740087031955,2.20089947,654.34,653.92,0.30584781]
[1740087032157,2.9614523,654.33,653.92,0.30584781]
[1740087032460,2.9614523,654.32,653.92,0.30584781]
[1740087032756,2.9614523,654.31,653.92,0.30584781]
[1740087032957,2.9614523,654.3,653.92,0.30584781]
[1740087033152,2.20089947,654.31,653.92,0.30584781]
[1740087033351,2.96180763,654.3,653.92,0.30584781]
[1740087033555,2.20089947,654.31,653.92,0.30584781]
[1740087033852,2.96191976,654.3,653.92,0.30584781]
[1740087034054,2.20089947,654.31,653.92,0.30584781]
[1740087034255,2.96193921,654.3,653.92,0.30584781]
[1740087034457,2.119,654.48,653.99,1.13862989]
[1740087034657,2.96196882,654.47,653.99,1.13862989]
[1740087034858,2.96196882,654.46,653.99,1.13862989]
[1740087035056,2.96196882,654.45,653.99,1.13862989]
[1740087035252,2.96196882,654.44,653.99,1.13862989]
[1740087035558,2.96196882,654.43,653.99,1.13862989]
[1740087035757,2.96196882,654.42,653.99,1.13862989]
[1740087036058,5.16341196,654.41,653.99,1.13862989]
[1740087036257,2.96196882,654.4,653.99,1.13862989]
[1740087036457,2.96196882,654.39,653.99,1.13862989]
[1740087036658,2.96196882,654.38,653.99,1.13862989]
[1740087036858,2.96196882,654.37,653.99,1.13862989]
[1740087037053,2.96196882,654.36,653.99,1.13862989]
[1740087037255,2.96196882,654.35,653.99,1.13862989]
[1740087037453,2.96196882,654.34,653.99,1.13862989]
[1740087037656,2.96196882,654.33,654.06,1.13862989]
[1740087037854,2.96196882,654.32,654.06,1.13862989]
[1740087038057,2.96196882,654.31,654.06,1.13862989]
[1740087038258,2.96196882,654.3,654.06,1.13862989]
[1740087038457,2.20144314,654.34,654.06,1.13862989]
[1740087038659,2.96344012,654.33,654.06,1.13862989]
[1740087038855,2.96344012,654.32,654.06,1.13862989]
[1740087039159,2.96344012,654.31,654.06,1.13862989]
[1740087039355,2.96344012,654.3,654.06,1.13862989]
[1740087039560,2.20144314,654.31,654.06,1.13862989]
[1740087039861,2.96376994,654.3,654.06,1.13862989]
[1740087040058,2.20144314,654.31,654.06,1.13862989]
[1740087040765,3.782,654.61,653.94,1.13862989]
[1740087040965,2.9641364,654.6,653.95,0.30583377]
[1740087041166,2.9641364,654.59,653.95,0.30583377]
[1740087041361,2.9641364,654.58,653.95,0.30583377]
[1740087041563,2.9641364,654.57,653.95,0.30583377]
[1740087041859,2.9641364,654.56,653.95,0.30583377]
[1740087042166,2.9641364,654.55,653.95,0.30583377]
[1740087042366,2.9641364,654.54,653.95,0.30583377]
[1740087042561,2.9641364,654.53,653.95,0.30583377]
[1740087042761,2.9641364,654.52,653.95,0.30583377]
[1740087042961,2.9641364,654.51,653.95,0.30583377]
[1740087043165,2.9641364,654.5,653.95,1.44446366]
[1740087043365,5.16711535,654.49,653.95,1.44446366]
[1740087043665,2.9641364,654.48,653.95,1.44446366]
[1740087043863,2.9641364,654.47,653.95,1.44446366]
[1740087044067,2.9641364,654.46,653.95,1.44446366]
[1740087044269,2.20297895,654.49,653.95,1.44446366]
[1740087044463,2.96554482,654.48,653.95,1.44446366]
[1740087044666,2.96554482,654.47,653.95,1.44446366]
[1740087044866,2.96549307,654.46,653.95,1.44446366]
[1740087045062,2.20297895,654.48,653.95,1.44446366]
[1740087045268,2.96548417,654.47,653.95,1.44446366]
[1740087045468,2.96548417,654.46,653.95,0.30583377]
[1740087045763,2.96548417,654.45,653.95,0.30583377]
[1740087045964,5.16846312,654.44,653.95,0.30583377]
[1740087046168,2.96548417,654.43,653.95,0.30583377]
[1740087046371,2.20297895,654.44,653.95,0.30583377]
[1740087046569,2.96592724,654.43,653.95,0.30583377]
[1740087046763,2.20297895,654.44,653.95,0.30583377]
[1740087046965,2.96590875,654.43,653.95,0.30583377]
[1740087047269,2.20297895,654.44,653.95,0.30583377]
[1740087047570,2.20297895,654.42,653.95,0.30583377]
[1740087048071,2.96607801,654.41,653.95,0.30583377]
[1740087048271,2.20297895,654.42,653.95,0.30583377]
[1740087048466,2.96640373,654.41,653.95,0.30583377]
[1740087048669,2.96640373,654.4,653.95,0.30583377]
[1740087048969,2.20297895,654.42,653.95,0.30583377]
[1740087049172,2.96633412,654.41,653.95,0.30583377]
[1740087049372,2.96633412,654.4,653.95,0.30583377]
[1740087049575,2.96633412,654.39,653.95,0.30583377]
[1740087049773,2.96633412,654.38,653.95,0.30583377]
[1740087049973,2.96633412,654.37,653.95,0.30583377]
[1740087050272,2.96657877,654.36,653.95,0.30583377]
[1740087050571,2.96657877,654.35,653.95,0.30583377]
[1740087050768,2.20297895,654.4,653.95,0.30583377]
[1740087050769,2.96657877,654.34,653.95,0.30583377]
[1740087051073,2.96657877,654.33,653.95,0.30583377]
[1740087051367,2.96657877,654.32,653.95,0.30583377]
[1740087051571,2.96657877,654.31,653.95,0.30583377]
[1740087051772,2.20297895,654.34,653.95,0.30583377]
[1740087051973,2.96720184,654.33,653.95,0.30583377]
[1740087052172,2.96720184,654.32,653.95,0.30583377]
[1740087052371,2.96720184,654.31,653.95,0.30583377]
[1740087052572,2.20297895,654.32,653.97,1.13862989]
[1740087052768,2.96758687,654.31,653.98,0.30581974]
[1740087052968,2.20297895,654.32,653.98,0.30581974]
[1740087054074,2.96857733,654.31,653.98,0.30581974]
[1740087054274,5.853,654.71,653.98,0.30581974]
[1740087054475,2.96880163,654.7,653.98,0.30581974]
[1740087054670,2.96880163,654.69,653.98,0.30581974]
[1740087054870,2.96880163,654.68,653.98,0.30581974]
[1740087055071,2.96880163,654.67,653.98,0.30581974]
[1740087055277,2.96880163,654.66,653.98,0.30581974]
[1740087055574,2.96880163,654.65,653.98,0.30581974]
[1740087055777,2.96880163,654.64,653.98,0.30581974]
[1740087055973,2.96880163,654.63,653.98,0.30581974]
[1740087056275,2.96880163,654.62,653.98,0.30581974]
[1740087056474,2.96880163,654.61,653.98,0.30581974]
[1740087056675,2.96880163,654.6,653.98,0.30581974]
[1740087056875,2.96880163,654.59,653.98,0.30581974]
[1740087057075,2.96880163,654.58,653.98,0.30581974]
[1740087057269,2.96880163,654.57,653.98,0.30581974]
[1740087057471,2.96880163,654.56,653.98,0.30581974]
[1740087057670,2.96880163,654.55,653.98,0.30581974]
[1740087057976,5.17527042,654.54,653.98,0.30581974]
[1740087058173,2.96880163,654.53,653.98,0.30581974]
[1740087058370,2.96880163,654.52,653.98,0.30581974]
[1740087058573,2.96880163,654.51,653.98,0.30581974]
[1740087058772,2.96880163,654.5,653.98,0.30581974]
[1740087058972,2.96880163,654.49,653.98,0.30581974]
[1740087059273,2.96880163,654.48,653.98,0.30581974]
[1740087059473,2.96880163,654.47,653.98,0.30581974]
[1740087059676,2.96880163,654.46,653.98,0.30581974]
[1740087059877,2.96880163,654.45,653.98,0.30581974]
[1740087060076,2.96880163,654.44,653.98,0.30581974]
[1740087060277,2.96880163,654.43,653.98,0.30581974]
[1740087060476,2.20646879,654.48,653.98,0.30581974]
[1740087060477,2.96880163,654.42,653.98,0.30581974]
[1740087060677,2.20646879,654.48,653.98,0.30581974]
[1740087060678,2.96880163,654.41,653.98,0.30581974]
[1740087060879,2.96880163,654.4,653.98,0.30581974]
[1740087061079,2.96880163,654.39,653.98,0.30581974]
[1740087061277,5.17527042,654.38,653.98,0.30581974]
[1740087061477,2.96880163,654.37,653.98,0.30581974]
[1740087061672,2.96880163,654.36,653.98,0.30581974]
[1740087061976,2.96880163,654.35,653.98,0.30581974]
[1740087062176,2.96880163,654.34,653.98,0.30581974]
[1740087062477,2.96880163,654.33,653.98,0.30581974]
[1740087062776,2.96880163,654.32,653.98,0.30581974]
[1740087062975,2.96880163,654.31,653.98,0.30581974]
[1740087063178,2.20646879,654.32,653.98,0.30581974]
[1740087063179,2.96880163,654.3,653.98,0.30581974]
[1740087063380,2.96880163,654.29,653.98,0.30581974]
[1740087063675,2.20646879,654.32,653.98,0.30581974]
[1740087063881,2.97211839,654.31,653.98,0.30581974]
[1740087064080,2.97211839,654.3,653.98,0.30581974]
[1740087064381,2.97211839,654.29,653.98,0.30581974]
[1740087064579,2.20646879,654.32,653.98,0.30581974]
[1740087064779,2.97217913,654.31,653.98,0.30581974]
[1740087064980,2.97217913,654.3,653.98,0.30581974]
[1740087065182,2.97217913,654.29,653.98,0.30581974]
[1740087065480,2.20646879,654.31,653.98,0.30581974]
[1740087065674,2.97262834,654.3,653.98,0.30581974]
[1740087065877,2.97262834,654.29,653.98,0.30581974]
[1740087066075,2.20646879,654.31,653.98,0.30581974]
[1740087066277,2.97265748,654.3,653.98,0.30581974]
[1740087066476,2.20646879,654.31,653.98,0.30581974]
[1740087066677,2.97291501,654.3,653.98,0.30581974]
[1740087066874,2.20646879,654.31,653.98,0.30581974]
[1740087067082,2.9729283,654.3,653.98,0.30581974]
[1740087067280,1.986,654.65,653.98,0.30581974]
[1740087067579,5.18253667,654.64,653.98,0.30581974]
[1740087067780,2.9729573,654.63,653.98,0.30581974]
[1740087067981,2.9729573,654.62,653.98,0.30581974]
[1740087068182,2.9729573,654.61,653.98,0.30581974]
[1740087068476,2.9729573,654.6,653.98,0.30581974]
[1740087068682,2.9729573,654.59,653.98,0.30581974]
[1740087068982,2.9729573,654.58,653.98,0.30581974]
[1740087069183,2.9729573,654.57,653.98,0.30581974]
[1740087069486,2.9729573,654.56,653.98,0.30581974]
[1740087069680,2.9729573,654.55,653.98,0.30581974]
[1740087069882,2.9729573,654.54,654.1,1.13862989]
[1740087070083,2.9729573,654.53,653.98,0.30581974]
[1740087070383,2.9729573,654.52,653.98,0.30581974]
[1740087070583,2.9729573,654.51,653.98,0.30581974]
[1740087070783,2.9729573,654.5,653.98,0.30581974]
[1740087070980,5.18253667,654.49,653.98,0.30581974]
[1740087071184,2.9729573,654.48,653.98,0.30581974]
[1740087071484,2.9729573,654.47,653.98,0.30581974]
[1740087071684,2.9729573,654.46,653.98,0.30581974]
[1740087071983,2.9729573,654.45,653.98,0.30581974]
[1740087072179,2.9729573,654.44,653.98,0.30581974]
[1740087072386,2.9729573,654.43,653.98,0.30581974]
[1740087072685,5.18253667,654.42,653.98,0.30581974]
[1740087072888,2.9729573,654.41,653.62,1.13863774]
[1740087073087,2.9729573,654.4,653.62,1.13863774]
[1740087073281,2.9729573,654.39,653.62,1.13863774]
[1740087073481,2.9729573,654.38,653.62,1.13863774]
[1740087073681,2.9729573,654.37,653.62,1.13863774]
[1740087073885,2.9729573,654.36,653.62,1.13863774]
[1740087074088,2.9729573,654.35,653.63,0.3059835]
[1740087074281,2.20957937,654.42,653.63,0.3059835]
[1740087074282,2.9729573,654.34,653.63,0.3059835]
[1740087074482,2.9729573,654.33,653.63,0.3059835]
[1740087074682,2.9729573,654.32,653.63,0.3059835]
[1740087074887,2.9729573,654.31,653.63,0.3059835]
[1740087075187,2.20957937,654.32,653.63,0.3059835]
[1740087075188,2.9729573,654.3,653.63,0.3059835]
[1740087075387,2.9729573,654.29,653.63,0.3059835]
[1740087075589,2.9729573,654.28,653.63,0.3059835]
[1740087075787,2.9729573,654.27,653.63,0.3059835]
[1740087075986,2.9729573,654.26,653.63,0.3059835]
[1740087076189,2.9729573,654.25,653.63,0.3059835]
[1740087076388,2.9729573,654.24,653.63,0.3059835]
[1740087076589,2.9729573,654.23,653.63,0.3059835]
[1740087076889,2.9729573,654.22,653.63,0.3059835]
[1740087077190,2.9729573,654.21,653.63,0.3059835]
[1740087077390,2.9729573,654.2,653.63,0.3059835]
[1740087077689,2.20957937,654.23,653.63,0.3059835]